[Event "Late-Titled-Tuesday-Blitz-June-18-2024"]
[Site "Chess.com"]
[Date "2024.06.18"]
[Round "7"]
[White "Giantgoogachess"]
[Black "HamedWafa4"]
[Result "1/2-1/2"]
[WhiteElo "2507"]
[BlackElo "2656"]
[TimeControl "180+1"]
[EndTime "15:21:22 PDT"]
[Termination "Game drawn by repetition"]

1. d4 {[%clk 0:03:00.9]} 1... Nf6 {[%clk 0:02:59.1]} 2. c4 {[%clk 0:03:01.4]}
2... e6 {[%clk 0:02:58.9]} 3. Nc3 {[%clk 0:03:01]} 3... Bb4 {[%clk 0:02:58.9]}
4. e3 {[%clk 0:03:01.3]} 4... O-O {[%clk 0:02:56.6]} 5. Bd2 {[%clk 0:03:01.1]}
5... b6 {[%clk 0:02:54.9]} 6. Bd3 {[%clk 0:02:56]} 6... Bb7 {[%clk 0:02:54]} 7.
Nf3 {[%clk 0:02:56.4]} 7... c5 {[%clk 0:02:51.6]} 8. O-O {[%clk 0:02:49.8]} 8...
cxd4 {[%clk 0:02:49.9]} 9. exd4 {[%clk 0:02:49.6]} 9... d5 {[%clk 0:02:50.2]}
10. cxd5 {[%clk 0:02:44.2]} 10... exd5 {[%clk 0:02:42.6]} 11. Bg5 {[%clk
0:02:40.5]} 11... h6 {[%clk 0:02:36.3]} 12. Bh4 {[%clk 0:02:40.5]} 12... Be7
{[%clk 0:02:36]} 13. Re1 {[%clk 0:02:35.7]} 13... Nbd7 {[%clk 0:02:33.7]} 14.
Ne5 {[%clk 0:02:33.5]} 14... Nxe5 {[%clk 0:01:52.3]} 15. Rxe5 {[%clk 0:02:20.6]}
15... Re8 {[%clk 0:01:47.2]} 16. Qf3 {[%clk 0:02:17.5]} 16... Ne4 {[%clk
0:01:21.3]} 17. Bxe7 {[%clk 0:01:51.3]} 17... Rxe7 {[%clk 0:01:19.7]} 18. Nxe4
{[%clk 0:01:50.6]} 18... dxe4 {[%clk 0:01:14.8]} 19. Bxe4 {[%clk 0:01:50.7]}
19... Bxe4 {[%clk 0:01:11.5]} 20. Qxe4 {[%clk 0:01:49.9]} 20... Rxe5 {[%clk
0:01:11.2]} 21. dxe5 {[%clk 0:01:50.6]} 21... Qe8 {[%clk 0:01:10.9]} 22. g3
{[%clk 0:01:47.5]} 22... Rd8 {[%clk 0:01:06.7]} 23. Re1 {[%clk 0:01:45.9]} 23...
Qe6 {[%clk 0:01:06.3]} 24. a3 {[%clk 0:01:44.9]} 24... g6 {[%clk 0:01:06.2]} 25.
Kg2 {[%clk 0:01:42.6]} 25... h5 {[%clk 0:01:04.6]} 26. h4 {[%clk 0:01:42.4]}
26... Rd2 {[%clk 0:01:04.6]} 27. Re2 {[%clk 0:01:30.5]} 27... Rd5 {[%clk
0:00:59]} 28. Qf4 {[%clk 0:01:16.8]} 28... Qc6 {[%clk 0:00:56]} 29. e6 {[%clk
0:00:54.7]} 29... fxe6 {[%clk 0:00:30.6]} 30. Kh2 {[%clk 0:00:44.3]} 30... Rf5
{[%clk 0:00:19.6]} 31. Qb8+ {[%clk 0:00:40.8]} 31... Rf8 {[%clk 0:00:18.7]} 32.
Qxa7 {[%clk 0:00:39.3]} 32... Qc4 {[%clk 0:00:18.3]} 33. Rd2 {[%clk 0:00:34.7]}
33... Qc5 {[%clk 0:00:15.2]} 34. Kg2 {[%clk 0:00:17.5]} 34... Qc6+ {[%clk
0:00:15.8]} 35. Kh2 {[%clk 0:00:18]} 35... Qc5 {[%clk 0:00:15.3]} 36. f4 {[%clk
0:00:17.2]} 36... e5 {[%clk 0:00:07.2]} 37. Qd7 {[%clk 0:00:12.4]} 37... exf4
{[%clk 0:00:05.4]} 38. Qe6+ {[%clk 0:00:12.4]} 38... Kh8 {[%clk 0:00:06.1]} 39.
Qxg6 {[%clk 0:00:08.8]} 39... fxg3+ {[%clk 0:00:06.6]} 40. Qxg3 {[%clk 0:00:09]}
40... Qf5 {[%clk 0:00:01.3]} 41. Qc3+ {[%clk 0:00:08.2]} 41... Qf6 {[%clk
0:00:01.5]} 42. Rd5 {[%clk 0:00:03.8]} 42... Qxc3 {[%clk 0:00:01.5]} 43. Rxh5+
{[%clk 0:00:04.1]} 43... Kg7 {[%clk 0:00:01.7]} 44. bxc3 {[%clk 0:00:05]} 44...
Rf2+ {[%clk 0:00:02.3]} 45. Kg3 {[%clk 0:00:05.1]} 45... Rc2 {[%clk 0:00:03.2]}
46. Rb5 {[%clk 0:00:04.8]} 46... Rxc3+ {[%clk 0:00:03.4]} 47. Kg4 {[%clk
0:00:05.7]} 47... Rxa3 {[%clk 0:00:04.1]} 48. Rxb6 {[%clk 0:00:06.3]} 48... Ra4+
{[%clk 0:00:04.7]} 49. Kg5 {[%clk 0:00:06.9]} 49... Ra5+ {[%clk 0:00:05.6]} 50.
Kg4 {[%clk 0:00:07.5]} 50... Ra4+ {[%clk 0:00:06.3]} 51. Kg3 {[%clk 0:00:08.1]}
51... Ra3+ {[%clk 0:00:06.9]} 52. Kf2 {[%clk 0:00:08.2]} 52... Ra2+ {[%clk
0:00:07.5]} 53. Ke3 {[%clk 0:00:08.1]} 53... Ra3+ {[%clk 0:00:08.2]} 54. Ke2
{[%clk 0:00:07.9]} 54... Ra2+ {[%clk 0:00:08.8]} 55. Kf1 {[%clk 0:00:08]} 55...
Ra4 {[%clk 0:00:09.7]} 56. Kg2 {[%clk 0:00:06.1]} 56... Rxh4 {[%clk 0:00:10.3]}
57. Kg3 {[%clk 0:00:06.6]} 57... Ra4 {[%clk 0:00:11]} 58. Re6 {[%clk 0:00:06.3]}
58... Kf7 {[%clk 0:00:11.6]} 59. Re3 {[%clk 0:00:06.4]} 59... Kf6 {[%clk
0:00:12.3]} 60. Rf3+ {[%clk 0:00:07.1]} 60... Kg5 {[%clk 0:00:12.9]} 61. Re3
{[%clk 0:00:07.5]} 61... Rg4+ {[%clk 0:00:12.8]} 62. Kf3 {[%clk 0:00:08]} 62...
Rb4 {[%clk 0:00:13.7]} 63. Kg3 {[%clk 0:00:08.2]} 63... Kf5 {[%clk 0:00:14.1]}
64. Kf3 {[%clk 0:00:08.4]} 64... Rf4+ {[%clk 0:00:13.5]} 65. Kg3 {[%clk
0:00:08.8]} 65... Rg4+ {[%clk 0:00:14.2]} 66. Kh3 {[%clk 0:00:08.9]} 66... Rg8
{[%clk 0:00:14.8]} 67. Rf3+ {[%clk 0:00:08.9]} 67... Ke4 {[%clk 0:00:15.5]} 68.
Rf7 {[%clk 0:00:09]} 68... Rh8+ {[%clk 0:00:15.1]} 69. Kg2 {[%clk 0:00:08.5]}
69... Rg8+ {[%clk 0:00:15.8]} 70. Kh2 {[%clk 0:00:09]} 70... Rg5 {[%clk
0:00:16.1]} 71. Rf8 {[%clk 0:00:08.9]} 71... Ke3 {[%clk 0:00:16.7]} 72. Kh3
{[%clk 0:00:09.1]} 72... Rg7 {[%clk 0:00:17]} 73. Kh4 {[%clk 0:00:09.4]} 73...
Rh7+ {[%clk 0:00:17.4]} 74. Kg4 {[%clk 0:00:09.4]} 74... Rh1 {[%clk 0:00:18.3]}
75. Kg3 {[%clk 0:00:09]} 75... Rg1+ {[%clk 0:00:18.5]} 76. Kh2 {[%clk
0:00:09.4]} 76... Rg7 {[%clk 0:00:19.4]} 77. Kh3 {[%clk 0:00:09.8]} 77... Ke4
{[%clk 0:00:19.1]} 78. Kh2 {[%clk 0:00:10.2]} 78... Ke5 {[%clk 0:00:19.7]} 79.
Kh1 {[%clk 0:00:10.6]} 79... Ke6 {[%clk 0:00:20.4]} 80. Rf2 {[%clk 0:00:10.2]}
80... Ke5 {[%clk 0:00:20.5]} 81. Kh2 {[%clk 0:00:10.5]} 81... Ke4 {[%clk
0:00:20.8]} 82. Rf8 {[%clk 0:00:10.5]} 82... Ke5 {[%clk 0:00:21]} 83. Kh3 {[%clk
0:00:10.7]} 83... Rh7+ {[%clk 0:00:21.4]} 84. Kg2 {[%clk 0:00:10.9]} 84... Rg7+
{[%clk 0:00:22.3]} 85. Kh2 {[%clk 0:00:11.3]} 85... Ke6 {[%clk 0:00:23.2]} 86.
Rf3 {[%clk 0:00:10.8]} 86... Kd6 {[%clk 0:00:22.9]} 87. Rf4 {[%clk 0:00:11]}
87... Rg5 {[%clk 0:00:20.2]} 88. Rf3 {[%clk 0:00:11.4]} 88... Ke5 {[%clk
0:00:20.7]} 89. Rf8 {[%clk 0:00:11.6]} 89... Ke4 {[%clk 0:00:20.7]} 90. Rf7
{[%clk 0:00:11.7]} 90... Rh5+ {[%clk 0:00:20.7]} 91. Kg2 {[%clk 0:00:11.5]}
91... Rg5+ {[%clk 0:00:21.3]} 92. Kh2 {[%clk 0:00:11.9]} 92... Rg6 {[%clk
0:00:22]} 93. Rf8 {[%clk 0:00:11.9]} 93... Ke5 {[%clk 0:00:21.8]} 94. Rf7 {[%clk
0:00:12.4]} 94... Ke6 {[%clk 0:00:22.2]} 95. Rf4 {[%clk 0:00:12.6]} 95... Rg7
{[%clk 0:00:21.9]} 96. Rf1 {[%clk 0:00:12.6]} 96... Ke5 {[%clk 0:00:22.4]} 97.
Rf2 {[%clk 0:00:13.1]} 97... Ke4 {[%clk 0:00:22.9]} 98. Rf8 {[%clk 0:00:13.4]}
1/2-1/2

[Event "Late-Titled-Tuesday-Blitz-June-18-2024"]
[Site "Chess.com"]
[Date "2024.06.18"]
[Round "7"]
[White "jup1978"]
[Black "Chessbard1972"]
[Result "0-1"]
[WhiteElo "2435"]
[BlackElo "2301"]
[TimeControl "180+1"]
[EndTime "15:21:35 PDT"]
[Termination "Chessbard1972 won by resignation"]

1. e4 {[%clk 0:02:56.6]} 1... c5 {[%clk 0:02:49.3]} 2. Nf3 {[%clk 0:02:56.8]}
2... a6 {[%clk 0:02:46.5]} 3. g3 {[%clk 0:02:56]} 3... e6 {[%clk 0:02:43]} 4.
Bg2 {[%clk 0:02:55.8]} 4... Nc6 {[%clk 0:02:43.8]} 5. O-O {[%clk 0:02:54.9]}
5... b5 {[%clk 0:02:42.9]} 6. d4 {[%clk 0:02:54.2]} 6... cxd4 {[%clk 0:02:40.4]}
7. Nxd4 {[%clk 0:02:55.1]} 7... Bb7 {[%clk 0:02:40.8]} 8. a4 {[%clk 0:02:55.2]}
8... b4 {[%clk 0:02:38.2]} 9. Re1 {[%clk 0:02:51.8]} 9... Bc5 {[%clk 0:02:34.3]}
10. Nb3 {[%clk 0:02:47.5]} 10... Ba7 {[%clk 0:02:32.9]} 11. Be3 {[%clk
0:02:46.8]} 11... Bxe3 {[%clk 0:02:31.4]} 12. Rxe3 {[%clk 0:02:47.7]} 12... Nf6
{[%clk 0:02:31]} 13. Rd3 {[%clk 0:02:41.9]} 13... Qc7 {[%clk 0:02:27.7]} 14.
N1d2 {[%clk 0:02:22.9]} 14... Ne5 {[%clk 0:02:24.9]} 15. Re3 {[%clk 0:02:22.3]}
15... Nfg4 {[%clk 0:02:23.3]} 16. Re2 {[%clk 0:02:21.5]} 16... O-O {[%clk
0:02:15.1]} 17. h3 {[%clk 0:02:21.7]} 17... Nf6 {[%clk 0:02:14]} 18. f4 {[%clk
0:02:21.7]} 18... Nc4 {[%clk 0:02:11.5]} 19. Kh2 {[%clk 0:02:19.4]} 19... Nxb2
{[%clk 0:02:04.8]} 20. Qg1 {[%clk 0:02:14]} 20... Nc4 {[%clk 0:01:59]} 21. e5
{[%clk 0:02:13.9]} 21... Nd5 {[%clk 0:01:50.7]} 22. Qd4 {[%clk 0:02:10.2]} 22...
Nxd2 {[%clk 0:01:48.9]} 23. Rxd2 {[%clk 0:02:11.1]} 23... Nc3 {[%clk 0:01:37.5]}
24. Qxb4 {[%clk 0:01:57.2]} 24... Bxg2 {[%clk 0:01:34.2]} 25. Kxg2 {[%clk
0:01:57.3]} 25... Nd5 {[%clk 0:01:30.1]} 26. Qd4 {[%clk 0:01:54.6]} 26... Rac8
{[%clk 0:01:28.8]} 27. Rc1 {[%clk 0:01:51.8]} 27... Qc3 {[%clk 0:01:25.2]} 28.
Qxc3 {[%clk 0:01:49.9]} 28... Rxc3 {[%clk 0:01:25.1]} 29. Nd4 {[%clk 0:01:48.5]}
29... Rb8 {[%clk 0:01:19.6]} 30. Rd3 {[%clk 0:01:46.1]} 30... Rc4 {[%clk
0:01:16.1]} 31. Rcd1 {[%clk 0:01:39.5]} 31... Rxa4 {[%clk 0:01:12.9]} 32. Nf5
{[%clk 0:01:35.6]} 32... Rc4 {[%clk 0:01:04.8]} 33. R1d2 {[%clk 0:01:31.5]}
33... Rb2 {[%clk 0:01:01.6]} 34. Nd4 {[%clk 0:01:29]} 34... g6 {[%clk
0:00:54.4]} 35. Ra3 {[%clk 0:01:28.7]} 35... Nb4 {[%clk 0:00:51.1]} 36. Kf3
{[%clk 0:01:22.6]} 36... Kf8 {[%clk 0:00:46.4]} 37. Ra4 {[%clk 0:01:18.4]} 37...
Ke7 {[%clk 0:00:34.6]} 38. h4 {[%clk 0:01:07.3]} 38... Rc3+ {[%clk 0:00:34.3]}
39. Kg4 {[%clk 0:01:01.5]} 39... Nxc2 {[%clk 0:00:32.4]} 40. Nxc2 {[%clk
0:00:56.6]} 40... Rbxc2 {[%clk 0:00:28.6]} 41. Rxc2 {[%clk 0:00:57.5]} 41...
Rxc2 {[%clk 0:00:28.3]} 42. Rxa6 {[%clk 0:00:58.2]} 42... Rc6 {[%clk 0:00:27.3]}
43. Ra8 {[%clk 0:00:57.8]} 43... h5+ {[%clk 0:00:25.7]} 44. Kf3 {[%clk
0:00:54.4]} 44... Rc3+ {[%clk 0:00:19.7]} 45. Kf2 {[%clk 0:00:54.5]} 45... Rd3
{[%clk 0:00:19.9]} 46. Rb8 {[%clk 0:00:52]} 46... f6 {[%clk 0:00:20]} 47. exf6+
{[%clk 0:00:48.6]} 47... Kxf6 {[%clk 0:00:20.3]} 48. Rf8+ {[%clk 0:00:49.1]}
48... Ke7 {[%clk 0:00:19.3]} 49. Rg8 {[%clk 0:00:48.2]} 49... Kf7 {[%clk
0:00:19.6]} 50. Rd8 {[%clk 0:00:48]} 50... d5 {[%clk 0:00:19.1]} 51. Rc8 {[%clk
0:00:44.3]} 51... Kf6 {[%clk 0:00:19.3]} 52. Rf8+ {[%clk 0:00:43.9]} 52... Ke7
{[%clk 0:00:19.4]} 53. Rg8 {[%clk 0:00:44.1]} 53... Kf7 {[%clk 0:00:19.8]} 54.
Rd8 {[%clk 0:00:44.7]} 54... d4 {[%clk 0:00:18.8]} 55. Rc8 {[%clk 0:00:44.9]}
55... Ke7 {[%clk 0:00:18.1]} 56. Rg8 {[%clk 0:00:45.1]} 56... Kf7 {[%clk
0:00:16.9]} 57. Rd8 {[%clk 0:00:45.7]} 57... Ke7 {[%clk 0:00:17]} 58. Rg8 {[%clk
0:00:45.7]} 58... Kf7 {[%clk 0:00:16.6]} 59. Rc8 {[%clk 0:00:45.4]} 59... Rc3
{[%clk 0:00:15.6]} 60. Rd8 {[%clk 0:00:44]} 60... d3 {[%clk 0:00:13.6]} 61. Ke3
{[%clk 0:00:31.1]} 61... d2+ {[%clk 0:00:12.8]} 62. Kxd2 {[%clk 0:00:31.6]}
62... Rxg3 {[%clk 0:00:12.9]} 63. Ke2 {[%clk 0:00:31.1]} 63... Ke7 {[%clk
0:00:11.9]} 64. Rg8 {[%clk 0:00:30.1]} 64... Kf7 {[%clk 0:00:12.3]} 65. Rd8
{[%clk 0:00:29.1]} 65... Rg4 {[%clk 0:00:12.8]} 66. Kf3 {[%clk 0:00:29.1]} 66...
Rxh4 {[%clk 0:00:12.9]} 67. Kg3 {[%clk 0:00:28.9]} 67... Rg4+ {[%clk 0:00:13.3]}
68. Kf3 {[%clk 0:00:29.8]} 68... Rg1 {[%clk 0:00:13.3]} 69. Rh8 {[%clk
0:00:29.1]} 69... Kg7 {[%clk 0:00:12.7]} 70. Re8 {[%clk 0:00:29.6]} 70... h4
{[%clk 0:00:11.7]} 71. Rb8 {[%clk 0:00:26.4]} 71... Kh6 {[%clk 0:00:09.5]} 72.
Rb7 {[%clk 0:00:26.8]} 72... h3 {[%clk 0:00:08.8]} 73. Rb2 {[%clk 0:00:26.4]}
73... Kh5 {[%clk 0:00:09.1]} 74. Rh2 {[%clk 0:00:24.5]} 74... Kh4 {[%clk
0:00:09.3]} 75. Ke4 {[%clk 0:00:23.2]} 75... Rf1 {[%clk 0:00:09.4]} 76. Ke3
{[%clk 0:00:22.7]} 76... Kg3 {[%clk 0:00:09.4]} 77. Rd2 {[%clk 0:00:19.2]} 77...
h2 {[%clk 0:00:09.3]} 78. Rd6 {[%clk 0:00:18.5]} 78... h1=Q {[%clk 0:00:08.8]}
79. Rxe6 {[%clk 0:00:19.4]} 79... Qf3+ {[%clk 0:00:08.7]} 80. Kd4 {[%clk
0:00:20.1]} 80... Qxf4+ {[%clk 0:00:09.2]} 81. Kd5 {[%clk 0:00:20.6]} 81... Rd1+
{[%clk 0:00:10.1]} 82. Kc6 {[%clk 0:00:20.6]} 82... Qf5 {[%clk 0:00:11]} 83. Re8
{[%clk 0:00:19.9]} 83... Qe6+ {[%clk 0:00:11.9]} 84. Rxe6 {[%clk 0:00:19.6]}
84... g5 {[%clk 0:00:11.2]} 85. Kc5 {[%clk 0:00:19.1]} 85... g4 {[%clk
0:00:12.1]} 86. Kc4 {[%clk 0:00:19.7]} 86... Kg2 {[%clk 0:00:12.4]} 87. Kc3
{[%clk 0:00:20.3]} 87... Rd8 {[%clk 0:00:12.2]} 88. Kc2 {[%clk 0:00:20.1]} 88...
g3 {[%clk 0:00:12.6]} 89. Rf6 {[%clk 0:00:20.2]} 89... Kg1 {[%clk 0:00:12.7]}
90. Rf7 {[%clk 0:00:20]} 90... g2 {[%clk 0:00:12.7]} 91. Rf6 {[%clk 0:00:20.2]}
91... Rd4 {[%clk 0:00:12]} 92. Rh6 {[%clk 0:00:19.7]} 92... Kf2 {[%clk
0:00:11.5]} 93. Rf6+ {[%clk 0:00:19.2]} 93... Kg3 {[%clk 0:00:11.6]} 94. Rg6+
{[%clk 0:00:17.2]} 94... Rg4 {[%clk 0:00:11.8]} 95. Rd6 {[%clk 0:00:17.7]} 95...
g1=Q {[%clk 0:00:11.7]} 96. Rd3+ {[%clk 0:00:18.6]} 96... Kh2 {[%clk 0:00:10]}
97. Kc3 {[%clk 0:00:18.7]} 97... Qg2 {[%clk 0:00:10.9]} 98. Kb3 {[%clk
0:00:17.8]} 98... Rg3 {[%clk 0:00:11.8]} 99. Rxg3 {[%clk 0:00:17.5]} 99... Qxg3+
{[%clk 0:00:12.2]} 0-1

[Event "Late-Titled-Tuesday-Blitz-June-18-2024"]
[Site "Chess.com"]
[Date "2024.06.18"]
[Round "8"]
[White "KaydenTroffChess"]
[Black "reevecanada"]
[Result "1-0"]
[WhiteElo "2806"]
[BlackElo "2626"]
[TimeControl "180+1"]
[EndTime "15:24:05 PDT"]
[Termination "KaydenTroffChess won by checkmate"]

1. d4 {[%clk 0:03:00.9]} 1... Nf6 {[%clk 0:02:54.8]} 2. Nf3 {[%clk 0:03:01.3]}
2... b6 {[%clk 0:02:54.6]} 3. Bf4 {[%clk 0:03:01.4]} 3... Bb7 {[%clk 0:02:54.8]}
4. Nbd2 {[%clk 0:03:01.9]} 4... e6 {[%clk 0:02:55]} 5. e3 {[%clk 0:03:02.5]}
5... c5 {[%clk 0:02:55.5]} 6. Nc4 {[%clk 0:03:02.5]} 6... d5 {[%clk 0:02:54]} 7.
Nce5 {[%clk 0:03:02.4]} 7... a6 {[%clk 0:02:52.8]} 8. Ng5 {[%clk 0:03:02.4]}
8... Qe7 {[%clk 0:02:40.8]} 9. Nexf7 {[%clk 0:02:46.9]} 9... Qxf7 {[%clk
0:02:37.7]} 10. Nxf7 {[%clk 0:02:45.4]} 10... Kxf7 {[%clk 0:02:38.6]} 11. c3
{[%clk 0:02:45.3]} 11... Nbd7 {[%clk 0:02:38.6]} 12. Bd3 {[%clk 0:02:43.5]}
12... Be7 {[%clk 0:02:38.3]} 13. O-O {[%clk 0:02:43.5]} 13... Rhf8 {[%clk
0:02:38.6]} 14. Qf3 {[%clk 0:02:42.6]} 14... Kg8 {[%clk 0:02:38.3]} 15. Qh3
{[%clk 0:02:42.7]} 15... Kf7 {[%clk 0:02:34.5]} 16. f3 {[%clk 0:02:34.8]} 16...
h6 {[%clk 0:02:30.8]} 17. Rae1 {[%clk 0:02:31]} 17... cxd4 {[%clk 0:02:17.3]}
18. exd4 {[%clk 0:02:29.9]} 18... Rfe8 {[%clk 0:02:12.9]} 19. Qxe6+ {[%clk
0:02:27.3]} 19... Kf8 {[%clk 0:02:13.2]} 20. Bg6 {[%clk 0:02:27.9]} 20... Ne5
{[%clk 0:02:11.6]} 21. Rxe5 {[%clk 0:02:25.2]} 21... Bc8 {[%clk 0:02:12.5]} 22.
Qf7# {[%clk 0:02:24.9]} 1-0

[Event "Late-Titled-Tuesday-Blitz-June-18-2024"]
[Site "Chess.com"]
[Date "2024.06.18"]
[Round "8"]
[White "Millerkallpa"]
[Black "EternalNight8"]
[Result "0-1"]
[WhiteElo "2206"]
[BlackElo "2397"]
[TimeControl "180+1"]
[EndTime "15:24:44 PDT"]
[Termination "EternalNight8 won by resignation"]

1. e4 {[%clk 0:02:53.8]} 1... c5 {[%clk 0:02:53.4]} 2. Nf3 {[%clk 0:02:53.2]}
2... d6 {[%clk 0:02:53.4]} 3. d4 {[%clk 0:02:53.6]} 3... cxd4 {[%clk 0:02:54.3]}
4. Nxd4 {[%clk 0:02:54]} 4... Nf6 {[%clk 0:02:54.6]} 5. Nc3 {[%clk 0:02:54.1]}
5... Nc6 {[%clk 0:02:55.2]} 6. Bg5 {[%clk 0:02:52]} 6... Bd7 {[%clk 0:02:54.9]}
7. Qd2 {[%clk 0:02:50.1]} 7... Rc8 {[%clk 0:02:54.4]} 8. O-O-O {[%clk
0:02:47.4]} 8... Nxd4 {[%clk 0:02:53.6]} 9. Qxd4 {[%clk 0:02:46.6]} 9... Qa5
{[%clk 0:02:54.2]} 10. f4 {[%clk 0:02:44.3]} 10... h6 {[%clk 0:02:54.2]} 11.
Bxf6 {[%clk 0:02:43.1]} 11... gxf6 {[%clk 0:02:54.7]} 12. Kb1 {[%clk 0:02:39.6]}
12... Qc5 {[%clk 0:02:54.6]} 13. Qd2 {[%clk 0:02:13.7]} 13... f5 {[%clk
0:02:54.2]} 14. Bd3 {[%clk 0:02:07.7]} 14... Bg7 {[%clk 0:02:43.4]} 15. exf5
{[%clk 0:01:59.3]} 15... Qb4 {[%clk 0:02:28.7]} 16. Ka1 {[%clk 0:01:40.2]} 16...
Rxc3 {[%clk 0:02:24.2]} 17. bxc3 {[%clk 0:01:41.1]} 17... Bxc3+ {[%clk
0:02:23.4]} 0-1

[Event "Late-Titled-Tuesday-Blitz-June-18-2024"]
[Site "Chess.com"]
[Date "2024.06.18"]
[Round "8"]
[White "canhhuan"]
[Black "rychessmaster1"]
[Result "1-0"]
[WhiteElo "2531"]
[BlackElo "2741"]
[TimeControl "180+1"]
[EndTime "15:25:09 PDT"]
[Termination "canhhuan won by resignation"]

1. e4 {[%clk 0:03:00.9]} 1... c6 {[%clk 0:02:58.9]} 2. Nf3 {[%clk 0:03:00.7]}
2... d5 {[%clk 0:02:59.4]} 3. exd5 {[%clk 0:03:00.6]} 3... cxd5 {[%clk
0:02:59.7]} 4. d4 {[%clk 0:03:00.6]} 4... Nc6 {[%clk 0:02:56.6]} 5. Bd3 {[%clk
0:02:58.8]} 5... Bg4 {[%clk 0:02:55.9]} 6. O-O {[%clk 0:02:58]} 6... e6 {[%clk
0:02:56]} 7. Be3 {[%clk 0:02:57.4]} 7... Bd6 {[%clk 0:02:55.9]} 8. Nbd2 {[%clk
0:02:56.9]} 8... Nge7 {[%clk 0:02:54]} 9. c3 {[%clk 0:02:54.2]} 9... O-O {[%clk
0:02:51.1]} 10. Bxh7+ {[%clk 0:02:48.5]} 10... Kh8 {[%clk 0:02:47.8]} 11. Bd3
{[%clk 0:02:47.6]} 11... Qc7 {[%clk 0:02:19]} 12. h3 {[%clk 0:02:45.5]} 12...
Bh5 {[%clk 0:02:17.5]} 13. a3 {[%clk 0:02:40.4]} 13... Rad8 {[%clk 0:02:16]} 14.
Qc2 {[%clk 0:02:39.2]} 14... e5 {[%clk 0:02:07.9]} 15. dxe5 {[%clk 0:02:38.8]}
15... Nxe5 {[%clk 0:02:08.8]} 16. Nxe5 {[%clk 0:02:38.7]} 16... Bxe5 {[%clk
0:02:09.5]} 17. Rfe1 {[%clk 0:02:35.9]} 17... Rfe8 {[%clk 0:02:03.2]} 18. Qa4
{[%clk 0:02:34.7]} 18... Bg6 {[%clk 0:01:48.1]} 19. Bxg6 {[%clk 0:02:29.1]}
19... Nxg6 {[%clk 0:01:49]} 20. Nf3 {[%clk 0:02:28.5]} 20... b6 {[%clk
0:01:44.3]} 21. Rad1 {[%clk 0:02:25.7]} 21... Kg8 {[%clk 0:01:41.1]} 22. Rxd5
{[%clk 0:02:22]} 22... Nf4 {[%clk 0:01:22.2]} 23. Bxf4 {[%clk 0:02:18.9]} 1-0

[Event "Late-Titled-Tuesday-Blitz-June-18-2024"]
[Site "Chess.com"]
[Date "2024.06.18"]
[Round "8"]
[White "PapaieDudu"]
[Black "WindWhistler11"]
[Result "1-0"]
[WhiteElo "2385"]
[BlackElo "2504"]
[TimeControl "180+1"]
[EndTime "15:25:28 PDT"]
[Termination "PapaieDudu won by resignation"]

1. Nf3 {[%clk 0:02:57.5]} 1... Nf6 {[%clk 0:02:59.4]} 2. d4 {[%clk 0:02:57.9]}
2... d6 {[%clk 0:03:00]} 3. c4 {[%clk 0:02:58.8]} 3... Nbd7 {[%clk 0:03:00.4]}
4. Nc3 {[%clk 0:02:59.7]} 4... g6 {[%clk 0:03:01]} 5. e3 {[%clk 0:02:59.9]} 5...
Bg7 {[%clk 0:03:01.5]} 6. Be2 {[%clk 0:03:00.8]} 6... c5 {[%clk 0:03:02.2]} 7.
O-O {[%clk 0:03:01.7]} 7... O-O {[%clk 0:03:02.4]} 8. Re1 {[%clk 0:03:01.8]}
8... a6 {[%clk 0:03:03]} 9. b3 {[%clk 0:03:01.8]} 9... Rb8 {[%clk 0:03:03.6]}
10. Bb2 {[%clk 0:03:02.5]} 10... Ne8 {[%clk 0:03:04]} 11. d5 {[%clk 0:03:02.7]}
11... Nc7 {[%clk 0:03:04.5]} 12. Rc1 {[%clk 0:03:03.3]} 12... b5 {[%clk
0:03:05.1]} 13. Ba1 {[%clk 0:03:03.4]} 13... bxc4 {[%clk 0:02:58.8]} 14. Bxc4
{[%clk 0:03:03.5]} 14... Nb5 {[%clk 0:02:57.3]} 15. Nxb5 {[%clk 0:03:03.3]}
15... axb5 {[%clk 0:02:58.2]} 16. Bxg7 {[%clk 0:03:04]} 16... Kxg7 {[%clk
0:02:58.5]} 17. Bd3 {[%clk 0:03:04]} 17... Qa5 {[%clk 0:02:57.8]} 18. Bb1 {[%clk
0:03:04.4]} 18... Ba6 {[%clk 0:02:54.7]} 19. e4 {[%clk 0:03:04.5]} 19... f6
{[%clk 0:02:54.5]} 20. Nd2 {[%clk 0:03:02.9]} 20... Rfc8 {[%clk 0:02:47.1]} 21.
f4 {[%clk 0:03:03.5]} 21... c4 {[%clk 0:02:47.6]} 22. bxc4 {[%clk 0:03:01.7]}
22... bxc4 {[%clk 0:02:47.4]} 23. Qg4 {[%clk 0:02:59.1]} 23... Rc7 {[%clk
0:02:28.2]} 24. Nf3 {[%clk 0:02:58.5]} 24... Rb2 {[%clk 0:02:18]} 25. Nd4 {[%clk
0:02:57.4]} 25... Nc5 {[%clk 0:02:12.6]} 26. e5 {[%clk 0:02:56.2]} 26... Qd2
{[%clk 0:02:00.2]} 27. Rcd1 {[%clk 0:02:48.3]} 27... Qf2+ {[%clk 0:01:52.5]} 28.
Kh1 {[%clk 0:02:47.6]} 28... h5 {[%clk 0:01:48]} 29. Qxg6+ {[%clk 0:02:46.4]}
29... Kf8 {[%clk 0:01:36.2]} 30. Ne6+ {[%clk 0:02:40.5]} 30... Nxe6 {[%clk
0:01:32.8]} 31. dxe6 {[%clk 0:02:40.9]} 1-0

[Event "Late-Titled-Tuesday-Blitz-June-18-2024"]
[Site "Chess.com"]
[Date "2024.06.18"]
[Round "8"]
[White "BardArtem"]
[Black "karinachess1"]
[Result "1-0"]
[WhiteElo "2861"]
[BlackElo "2673"]
[TimeControl "180+1"]
[EndTime "15:25:46 PDT"]
[Termination "BardArtem won by resignation"]

1. e4 {[%clk 0:03:00.9]} 1... e5 {[%clk 0:02:59.9]} 2. Nf3 {[%clk 0:03:00.4]}
2... Nc6 {[%clk 0:03:00.4]} 3. Nc3 {[%clk 0:03:00.9]} 3... Nf6 {[%clk
0:03:00.4]} 4. a4 {[%clk 0:03:01.2]} 4... Be7 {[%clk 0:02:51.2]} 5. d4 {[%clk
0:03:00.3]} 5... exd4 {[%clk 0:02:51.4]} 6. Nxd4 {[%clk 0:03:01.2]} 6... Bb4
{[%clk 0:02:51.1]} 7. Nxc6 {[%clk 0:02:58.5]} 7... bxc6 {[%clk 0:02:52]} 8. Bd3
{[%clk 0:02:53.8]} 8... O-O {[%clk 0:02:52.2]} 9. O-O {[%clk 0:02:54.3]} 9... d5
{[%clk 0:02:52.7]} 10. exd5 {[%clk 0:02:55.2]} 10... cxd5 {[%clk 0:02:53.6]} 11.
h3 {[%clk 0:02:55.7]} 11... c6 {[%clk 0:02:52.7]} 12. Qf3 {[%clk 0:02:55.6]}
12... Rb8 {[%clk 0:02:51.7]} 13. Ne2 {[%clk 0:02:55]} 13... Bd6 {[%clk
0:02:47.6]} 14. b3 {[%clk 0:02:50.1]} 14... Re8 {[%clk 0:02:40.9]} 15. Bf4
{[%clk 0:02:44.9]} 15... Rb4 {[%clk 0:02:36.9]} 16. Bd2 {[%clk 0:02:29.8]} 16...
Rb7 {[%clk 0:02:31.4]} 17. Bc3 {[%clk 0:02:24.6]} 17... Be5 {[%clk 0:02:30.9]}
18. Bxe5 {[%clk 0:02:23.1]} 18... Rxe5 {[%clk 0:02:31.8]} 19. Rfe1 {[%clk
0:02:21.8]} 19... Rbe7 {[%clk 0:02:31.5]} 20. Red1 {[%clk 0:02:12.7]} 20... h6
{[%clk 0:02:22.2]} 21. c4 {[%clk 0:02:10.5]} 21... Qb6 {[%clk 0:02:13.4]} 22.
Rac1 {[%clk 0:01:58.6]} 22... Bb7 {[%clk 0:01:59]} 23. c5 {[%clk 0:01:35.8]}
23... Qb4 {[%clk 0:01:52.8]} 24. Nd4 {[%clk 0:01:35.6]} 24... Re1+ {[%clk
0:01:51.3]} 25. Rxe1 {[%clk 0:01:33.7]} 25... Rxe1+ {[%clk 0:01:52.2]} 26. Rxe1
{[%clk 0:01:34.5]} 26... Qxe1+ {[%clk 0:01:52.4]} 27. Kh2 {[%clk 0:01:35.1]}
27... Qe5+ {[%clk 0:01:52.7]} 28. Qg3 {[%clk 0:01:34.1]} 28... Qxd4 {[%clk
0:01:49.2]} 29. Qb8+ {[%clk 0:01:33]} 1-0